bitfinex-derivatives/quotes_ETHF0:USTF0_20240923
["timestamp","ask_amount","ask_price","bid_price","bid_amount"]
[1727076168330,3.2078,2640.1,2639.7,3.2078]
[1727076168331,3.58655,2640.1,2640.0,40.8]
[1727076168922,3.2078,2640.1,2639.8,0.3727]
[1727076169425,0.37878,2640.0,2639.8,40.8]
[1727076169930,0.37878,2640.0,2639.6,0.37882]
[1727076170321,0.37878,2640.0,2639.7,40.8]
[1727076170831,3.2078,2640.1,2639.7,41.1788]
[1727076171026,3.2078,2640.1,2639.7,40.8]
[1727076171619,0.37873,2640.3,2639.9,0.37877]
[1727076171840,0.37871,2640.4,2640.0,0.37876]
[1727076172421,0.3818,2640.6,2639.9,3.593]
[1727076172620,0.3818,2640.6,2640.1,0.37874]
[1727076172621,0.37869,2640.5,2640.1,0.37874]
[1727076173121,0.76049,2640.6,2640.2,0.37873]
[1727076173623,0.37871,2640.4,2640.0,0.37876]
[1727076174320,2.4487,2640.5,2640.0,0.37876]
[1727076174829,2.4487,2640.5,2640.1,0.37875]
[1727076175223,2.07,2640.5,2639.9,3.593]
[1727076175524,2.4487,2640.5,2640.0,0.37876]
[1727076175723,0.37871,2640.4,2640.0,0.37876]
[1727076178517,0.37871,2640.4,2639.9,3.9634]
[1727076178721,0.37871,2640.4,2640.0,0.37876]
[1727076178924,0.37872,2640.4,2640.0,0.37876]
[1727076179616,0.37871,2640.4,2640.0,0.37876]
[1727076180020,2.07,2640.5,2639.9,3.9634]
[1727076180225,2.07,2640.5,2639.9,3.593]
[1727076180428,0.37874,2640.2,2639.9,3.593]
[1727076180824,0.37873,2640.3,2639.9,3.593]
[1727076181027,0.37873,2640.3,2639.9,3.97177]
[1727076181225,0.37873,2640.3,2639.9,3.593]
[1727076181522,0.37868,2640.6,2640.1,0.37874]
[1727076181720,0.3787,2640.5,2639.9,3.593]
[1727076181929,0.3787,2640.5,2640.1,0.37875]
[1727076182124,0.3787,2640.5,2639.9,3.593]
[1727076182125,0.37871,2640.4,2639.9,3.593]
[1727076182423,2.4487,2640.5,2640.0,0.37876]
[1727076182829,0.37871,2640.4,2639.9,3.97177]
[1727076183428,2.4487,2640.5,2639.9,3.593]
[1727076183628,0.7654,2640.8,2640.3,0.37871]
[1727076183817,3.2078,2640.9,2639.9,3.593]
[1727076183818,3.2078,2640.9,2640.5,0.37868]
[1727076184019,3.94409923,2641.1,2640.7,2.44866]
[1727076184925,3.9414,2641.3,2640.8,3.2078]
[1727076185228,4.31998,2641.3,2640.8,3.2078]
[1727076186121,3.2078,2641.3,2640.8,3.2078]
[1727076186327,3.58638,2641.3,2640.8,3.2078]
[1727076186529,3.58638,2641.3,2640.9,40.8]
[1727076187439,3.2078,2641.3,2640.9,41.17863]
[1727076187633,3.2078,2641.3,2640.9,40.8]
[1727076188136,3.58638,2641.3,2640.9,40.8]
[1727076188534,0.37859,2641.2,2640.9,40.8]
[1727076189039,0.3786,2641.2,2640.9,40.8]
[1727076189738,0.37861,2641.1,2640.8,3.2078]
[1727076190141,0.3786,2641.2,2640.8,3.2078]
[1727076191044,3.2078,2641.3,2640.8,3.2078]
[1727076191247,3.58638,2641.3,2640.8,3.58644]
[1727076191538,3.58638,2641.3,2640.8,3.98704]
[1727076192044,3.58638,2641.3,2640.9,2.07]
[1727076192230,3.94409923,2641.6,2641.1,3.2078]
[1727076192430,3.94409923,2641.6,2641.2,0.3667]
[1727076192431,0.37855,2641.5,2641.2,0.3667]
[1727076192639,0.37856,2641.4,2641.2,0.7574]
[1727076193141,0.37856,2641.5,2641.2,0.7574]
[1727076193538,3.2078,2641.6,2641.2,0.7574]
[1727076193746,0.37856,2641.4,2641.2,0.7574]
[1727076193948,0.37855,2641.5,2641.2,0.7574]
[1727076194942,3.2078,2641.6,2641.2,0.7574]
[1727076195147,0.37857,2641.4,2641.2,0.7574]
[1727076195643,0.37855,2641.5,2641.2,0.7574]
[1727076195852,0.37858,2641.3,2641.2,0.7574]
[1727076196051,0.37863,2641.0,2640.8,3.2078]
[1727076196253,0.37861,2641.1,2640.8,3.2078]
[1727076196453,0.37862,2641.0,2640.8,3.2078]
[1727076197053,3.2078,2641.3,2640.8,3.2078]
[1727076197054,0.37862,2641.1,2640.8,3.2078]
[1727076197458,0.37862,2641.0,2640.9,0.3935]
[1727076198655,3.2078,2641.3,2640.9,0.3935]
[1727076198656,0.37861,2641.1,2640.9,0.3935]
[1727076199559,0.37862,2641.0,2640.9,0.3935]
[1727076200759,0.94652,2641.1,2640.5,3.9933]
[1727076200964,0.37867,2640.7,2640.5,3.9933]
[1727076201160,0.37868,2640.6,2640.5,3.9933]
[1727076201462,0.37874,2640.2,2639.8,6.859]
[1727076201754,0.37873,2640.3,2640.0,3.5823]
[1727076202272,4.89076923,2640.7,2640.0,5.6523]
[1727076203561,0.37873,2640.3,2640.0,5.6523]
[1727076203757,0.9467,2640.6,2640.0,5.6523]
[1727076203964,0.37875,2640.1,2640.0,3.5823]
[1727076204762,5.2778,2640.6,2640.0,3.5823]
[1727076204967,0.37873,2640.3,2640.0,3.5823]
[1727076205261,0.37874,2640.2,2640.0,3.5823]
[1727076205566,3.2078,2640.6,2640.0,3.5823]
[1727076205956,0.37872,2640.4,2640.0,3.5823]
[1727076206259,0.94667,2640.7,2640.0,3.5823]
[1727076206260,0.37872,2640.3,2640.0,3.5823]
[1727076206462,3.2078,2640.6,2640.0,3.5823]
[1727076206764,0.37874,2640.2,2640.0,3.5823]
[1727076206961,0.37873,2640.3,2640.0,3.5823]
[1727076207350,0.37874,2640.2,2640.0,3.5823]
[1727076208758,0.37875,2640.1,2640.0,3.5823]
[1727076209265,0.94685,2640.2,2639.7,3.9832]
[1727076209764,0.37879,2639.9,2639.8,40.8]
[1727076209959,0.37872,2640.3,2639.9,0.37877]
[1727076210159,3.5865,2640.5,2640.1,2.07]
[1727076210376,3.2078,2640.5,2640.4,2.44871]
[1727076210559,3.94409923,2641.0,2640.4,5.8572]
[1727076210560,4.32272923,2641.0,2640.4,5.8572]
[1727076210859,0.37864,2640.9,2640.6,5.2778]
[1727076211063,0.37865,2640.8,2640.7,41.1866]
[1727076211465,0.37865,2640.8,2640.7,0.3866]
[1727076211969,0.3787,2640.5,2640.4,40.8]
[1727076212169,0.37869,2640.6,2640.4,40.8]
[1727076214159,0.37867,2640.7,2640.4,40.8]
[1727076214359,1.3285,2640.9,2640.4,40.8]
[1727076214561,0.37867,2640.7,2640.4,40.8]
[1727076214765,0.37868,2640.6,2640.4,44.0078]
[1727076215063,0.37869,2640.5,2640.4,40.8]
[1727076216663,0.37869,2640.6,2640.4,40.8]
[1727076217064,0.37869,2640.5,2640.4,40.8]
[1727076218163,0.37869,2640.6,2640.4,40.8]
[1727076218662,0.37866,2640.8,2640.4,40.8]
[1727076219061,3.94409923,2641.0,2640.4,40.8]
[1727076219364,0.37866,2640.8,2640.5,3.2078]
[1727076219560,0.37867,2640.7,2640.5,3.2078]
[1727076219761,0.37867,2640.7,2640.4,2.07]
[1727076219964,0.37867,2640.7,2640.5,40.8]
[1727076220365,0.37866,2640.8,2640.5,40.8]
[1727076220559,0.37864,2640.9,2640.5,41.17868]
[1727076220769,3.94409923,2641.3,2640.6,2.44867]
[1727076220972,5.49952441,2641.4,2640.7,0.3728]
[1727076221279,0.37863,2641.0,2640.8,0.3813]
[1727076221472,0.37863,2641.0,2640.8,0.7757]
[1727076221977,3.2078,2641.1,2640.8,0.7757]
[1727076221978,0.37863,2640.9,2640.8,0.7757]
[1727076223075,0.37863,2641.0,2640.8,0.7757]
[1727076223272,0.37861,2641.1,2640.8,0.7757]
[1727076223873,0.37862,2641.0,2640.8,0.7757]
[1727076224368,2.07,2641.3,2640.8,0.7757]
[1727076224569,0.37863,2641.0,2640.8,0.7757]
[1727076224768,0.37863,2641.0,2640.8,3.9835]
[1727076225571,0.37863,2641.0,2640.8,0.7757]
[1727076225777,0.37863,2640.9,2640.8,0.7757]
[1727076226466,3.01655,2641.1,2640.5,44.99540726]
[1727076226467,0.37868,2640.6,2640.5,44.99540726]
[1727076226673,0.37868,2640.6,2640.5,3.2078]
[1727076227181,0.37867,2640.7,2640.5,3.2078]
[1727076228177,0.37868,2640.6,2640.5,3.2078]
[1727076228482,0.37867,2640.7,2640.5,3.2078]
[1727076228682,0.37868,2640.6,2640.5,3.2078]
[1727076230385,5.8572,2640.6,2640.3,0.98760726]
[1727076230581,5.8572,2640.6,2640.2,0.98760726]
[1727076230582,0.37872,2640.3,2640.2,0.98760726]
[1727076230879,0.37872,2640.3,2640.1,0.98760726]
[1727076231083,0.37874,2640.2,2640.1,0.98760726]
[1727076231277,0.37874,2640.2,2640.1,2.16793802]
[1727076231472,0.37874,2640.2,2640.1,0.99081655]
[1727076232491,0.37874,2640.2,2640.1,0.9907834]
[1727076232786,0.37874,2640.2,2640.0,41.7907834]
[1727076233784,0.37873,2640.3,2640.0,41.7907834]
[1727076233981,0.37868,2640.6,2640.2,3.58653]
[1727076234186,0.37868,2640.6,2640.3,2.07]
[1727076234377,0.37867,2640.7,2640.3,3.4545834]
[1727076234578,0.37867,2640.7,2640.4,0.3635]
[1727076234878,0.37867,2640.7,2640.5,0.3865]
[1727076235077,0.37868,2640.6,2640.5,0.3865]
[1727076238186,3.7872,2640.6,2640.3,0.9907834]
[1727076238392,0.37872,2640.3,2640.2,3.2078]
[1727076240488,4.17817441,2640.7,2640.2,3.2078]
[1727076240882,0.37872,2640.3,2640.2,3.2078]
[1727076242381,4.17817441,2640.7,2640.2,3.2078]
[1727076242886,0.3787,2640.5,2640.2,3.2078]
[1727076243195,0.37871,2640.4,2640.2,3.2078]
[1727076243787,4.17817441,2640.7,2640.2,3.2078]
[1727076243788,0.37872,2640.3,2640.2,3.2078]
[1727076244298,0.37868,2640.6,2640.2,3.58653]
[1727076244599,0.37868,2640.6,2640.2,4.5773134]
[1727076244783,0.97037441,2640.8,2640.5,2.07]
[1727076245100,1.45556162,2640.9,2640.6,0.7503]
[1727076245101,0.37864,2640.9,2640.6,0.7503]
[1727076245283,0.37864,2640.9,2640.6,2.1197534]
[1727076245488,0.97037441,2641.2,2640.8,2.44865]
[1727076245694,0.97037441,2641.2,2641.0,3.0607834]
[1727076245695,0.3786,2641.2,2641.0,3.0607834]
[1727076246090,0.3786,2641.2,2641.1,0.3729]
[1727076247683,0.37858,2641.3,2641.1,0.3729]
[1727076248190,0.37857,2641.4,2641.2,0.3817]
[1727076248491,0.97037441,2641.6,2641.2,41.1817]
[1727076248801,0.37858,2641.3,2641.2,41.1817]
[1727076249994,0.37858,2641.3,2641.2,40.8]
[1727076250388,0.37858,2641.3,2641.1,0.7603]
[1727076250900,0.37858,2641.3,2641.1,41.5603]
[1727076251088,0.37857,2641.4,2641.1,41.5603]
[1727076251396,0.37858,2641.3,2641.1,41.5603]
[1727076252289,0.37859,2641.2,2641.1,41.5603]
[1727076252484,0.37859,2641.2,2641.1,0.7603]
[1727076252998,0.37862,2641.0,2640.9,0.9907834]
[1727076253205,0.94646,2641.3,2640.8,4.5634834]
[1727076253494,0.37862,2641.1,2640.8,4.5634834]
[1727076253701,0.37863,2641.0,2640.8,4.5634834]
[1727076253899,0.37863,2640.9,2640.8,4.5634834]
[1727076254292,0.37863,2640.9,2640.8,3.5727]
[1727076254889,0.37868,2640.6,2640.5,0.9907834]
[1727076255787,0.37868,2640.6,2640.5,2.17160395]
[1727076256101,0.37868,2640.6,2640.5,0.9907834]
[1727076256491,0.37869,2640.5,2640.4,0.3649]
[1727076256803,0.37871,2640.4,2640.3,0.9907834]
[1727076257603,0.3787,2640.5,2640.3,0.9907834]
[1727076257801,0.37869,2640.6,2640.3,0.9907834]
[1727076258097,0.37869,2640.5,2640.3,0.9907834]
[1727076258796,3.58647,2640.7,2640.4,0.9907834]
[1727076259001,0.37868,2640.6,2640.4,0.9907834]
[1727076259303,0.37868,2640.6,2640.3,3.0607834]
[1727076260001,3.2078,2640.7,2640.3,3.0607834]
[1727076260002,4.17817441,2641.0,2640.5,2.07]
[1727076260193,0.37864,2640.9,2640.6,0.9907834]
[1727076260388,0.3795,2641.1,2640.6,0.9907834]
[1727076260389,4.53384,2641.1,2640.6,0.9907834]
[1727076260594,4.53384,2641.1,2640.5,1.48141089]
[1727076260595,0.37867,2640.7,2640.5,0.9907834]
[1727076260795,5.50421441,2641.1,2640.5,0.9907834]
[1727076261002,0.37868,2640.7,2640.4,1.3753834]
[1727076261197,0.37868,2640.6,2640.4,1.3753834]
[1727076261398,0.37868,2640.6,2640.4,0.9907834]
[1727076262001,0.37869,2640.5,2640.4,0.9907834]
[1727076262297,3.2078,2640.8,2640.2,5.06341089]
[1727076262298,0.37871,2640.4,2640.2,5.06341089]
[1727076262498,0.37871,2640.4,2640.3,0.9912516]
[1727076263997,5.2778,2640.8,2640.3,0.9912516]
[1727076264188,3.2078,2640.8,2640.3,3.0612516]
[1727076264602,0.94667,2640.7,2640.3,3.0612516]
[1727076264804,0.37871,2640.4,2640.3,0.9912516]
[1727076266403,0.37871,2640.4,2640.2,4.5732516]
[1727076269600,0.37871,2640.4,2640.2,1.3654516]
[1727076271709,3.2078,2640.8,2640.4,0.3787]
[1727076271903,0.37867,2640.7,2640.5,2.07]
[1727076272901,0.3787,2640.5,2640.3,3.0612516]
[1727076273107,0.37869,2640.5,2640.3,3.0612516]
[1727076273407,0.37868,2640.6,2640.3,3.0612516]
[1727076273598,4.15443,2640.8,2640.3,3.0612516]
[1727076274098,4.15443,2640.8,2640.2,0.3742]
[1727076274099,0.37871,2640.4,2640.2,1.3654516]
[1727076277208,0.37868,2640.7,2640.3,2.44871]
[1727076277398,3.2078,2640.8,2640.3,2.44871]
[1727076278105,3.2078,2640.8,2640.3,3.4399616]
[1727076278298,0.37868,2640.6,2640.3,3.4399616]
[1727076278702,0.37868,2640.6,2640.3,2.44871]
[1727076279109,0.37868,2640.6,2640.3,3.4399616]
[1727076280309,0.37869,2640.5,2640.3,2.07]
[1727076280510,0.37869,2640.6,2640.3,2.07]
[1727076280708,3.2078,2640.8,2640.3,2.07]
[1727076280915,3.58646,2640.8,2640.5,0.37869]
[1727076281214,0.37869,2640.6,2640.2,1.7441816]
[1727076281917,0.37867,2640.7,2640.3,1.3699716]
[1727076282098,3.2078,2640.8,2640.4,0.3787]
[1727076282306,0.37867,2640.7,2640.4,0.3787]
[1727076283509,0.37867,2640.7,2640.3,1.3699616]
[1727076283713,0.37867,2640.7,2640.4,0.37871]
[1727076284014,0.37867,2640.7,2640.3,0.9912516]
[1727076284015,0.37867,2640.7,2640.3,1.3699616]
[1727076284406,0.37867,2640.7,2640.4,0.3787]
[1727076284910,0.37868,2640.6,2640.4,0.9912516]
[1727076285412,3.2078,2640.8,2640.4,0.9912516]
[1727076285604,0.37866,2640.7,2640.4,0.9912516]
[1727076285807,0.37868,2640.6,2640.4,0.9912516]
[1727076286716,0.37867,2640.7,2640.4,0.9912516]
[1727076286919,0.37867,2640.7,2640.4,1.3699516]
[1727076287612,3.2078,2640.8,2640.4,1.3699516]
[1727076287613,3.2078,2640.8,2640.5,2.07]
[1727076287817,3.58645,2640.8,2640.5,3.4399316]
[1727076288009,3.2078,2640.8,2640.6,0.3701]
[1727076288323,0.37866,2640.7,2640.6,0.3701]
[1727076288719,1.32543,2640.5,2640.4,0.9912516]
[1727076288906,0.37875,2640.1,2640.0,0.9912516]
[1727076289108,0.37875,2640.1,2639.7,0.9912516]
[1727076289109,3.01688,2640.1,2639.7,0.9912516]
[1727076289320,0.37882,2639.7,2639.5,1.3773516]
[1727076289512,0.37882,2639.7,2639.5,41.1861]
[1727076290115,0.3788,2639.8,2639.5,41.1861]
[1727076290310,0.37881,2639.7,2639.5,41.1861]
[1727076290523,0.3788,2639.8,2639.5,41.1861]
[1727076291407,0.37881,2639.7,2639.5,41.1861]
[1727076291614,0.3788,2639.8,2639.5,41.1861]
[1727076292519,3.5899,2640.0,2639.5,41.1861]
[1727076292717,3.2078,2639.7,2639.5,41.1861]
[1727076292907,3.2078,2639.7,2639.3,0.47213482]
[1727076293319,0.37885,2639.4,2639.3,41.27213482]
[1727076293618,0.37885,2639.4,2639.3,0.47213482]
[1727076293619,10.53378,2639.4,2639.3,0.47213482]
[1727076293824,17.36295441,2639.4,2639.3,0.47213482]
[1727076294423,16.39258,2639.4,2639.3,0.47213482]
[1727076296022,0.37895,2638.7,2638.5,0.7623]
[1727076296419,4.89126923,2639.3,2638.5,0.7623]
[1727076296420,0.37894,2638.8,2638.5,0.7623]
[1727076296625,0.37894,2638.8,2638.6,40.8]
[1727076298124,0.37893,2638.9,2638.6,40.8]
[1727076298318,0.3714,2639.2,2638.6,40.8]
[1727076299030,0.37894,2638.8,2638.6,40.8]
[1727076299918,0.37893,2638.9,2638.6,40.8]
[1727076300117,0.37894,2638.8,2638.6,40.8]
[1727076300329,0.37892,2639.0,2638.6,40.8]
[1727076300520,0.3714,2639.2,2638.6,40.8]
[1727076300825,0.37894,2638.8,2638.6,40.8]
[1727076301414,0.94724,2639.1,2638.6,40.8]
[1727076301620,0.37895,2638.7,2638.6,40.8]
[1727076301830,0.37894,2638.8,2638.6,40.8]
[1727076302123,0.75352,2639.0,2638.6,40.8]
[1727076302421,4.32296923,2639.3,2638.9,0.37891]
[1727076302627,4.32296923,2639.3,2639.0,2.4478]
[1727076302628,0.37887,2639.3,2639.0,2.4478]
[1727076302928,0.37887,2639.3,2639.1,0.3632]
[1727076303128,0.37887,2639.3,2639.1,41.1632]
[1727076304026,3.2078,2639.5,2639.1,41.1632]
[1727076304418,0.37886,2639.4,2639.1,41.1632]
[1727076305822,3.94409923,2639.8,2639.2,2.07]
[1727076306024,3.5735,2640.1,2639.5,2.07]
[1727076306216,0.37881,2639.7,2639.6,0.397]
[1727076306617,0.37878,2639.9,2639.6,0.397]
[1727076306825,0.37876,2640.0,2639.7,0.3818]
[1727076307227,3.2078,2640.1,2639.7,2.4518]
[1727076307536,13.3247,2640.4,2639.7,2.4518]
[1727076307537,11.2547,2640.4,2639.7,2.4518]
[1727076307721,4.15461,2640.3,2639.7,0.3818]
[1727076308035,0.37879,2639.9,2639.7,0.3818]
[1727076308924,0.37879,2639.8,2639.7,0.3818]
[1727076309226,0.37882,2639.6,2639.5,3.2078]
[1727076309427,0.37881,2639.7,2639.5,3.2078]
[1727076309723,3.2078,2640.3,2639.5,5.2778]
[1727076310232,0.37877,2640.0,2639.6,0.37882]
[1727076310435,0.37877,2640.0,2639.7,0.3627]
[1727076310630,0.37877,2640.0,2639.8,0.3721]
[1727076310937,0.37876,2640.1,2639.8,0.3721]
[1727076311236,3.58653,2640.3,2639.9,0.37877]
[1727076311531,3.2078,2640.3,2639.8,0.3721]
[1727076311833,0.37878,2639.9,2639.8,0.3721]
[1727076312031,0.37878,2639.9,2639.2,3.2078]
[1727076312032,0.37885,2639.4,2639.2,3.2078]
[1727076312229,0.37886,2639.3,2639.2,3.983]
[1727076312729,3.2078,2639.7,2639.2,0.7752]
[1727076312939,0.37886,2639.4,2639.2,0.7752]
[1727076313137,0.37886,2639.3,2639.2,0.7752]
[1727076313335,0.37886,2639.4,2639.2,0.7752]
[1727076313648,0.37886,2639.3,2639.2,0.7752]
[1727076314333,0.37886,2639.4,2639.2,0.7752]
[1727076314527,4.89459,2639.8,2639.2,0.7752]
[1727076314528,0.37884,2639.5,2639.2,0.7752]
[1727076315533,0.37885,2639.4,2639.2,0.7752]
[1727076316130,0.37884,2639.5,2639.2,0.7752]
[1727076316331,3.9476,2639.8,2639.2,0.7752]
[1727076316535,0.37885,2639.5,2639.2,0.7752]
[1727076317032,3.9476,2639.8,2639.3,2.07]
[1727076317033,3.2078,2639.8,2639.3,2.07]
[1727076317333,0.3788,2639.8,2639.5,2.07]
[1727076317633,0.3788,2639.8,2639.3,0.37885]
[1727076317634,0.3788,2639.8,2639.3,2.44885]
[1727076317838,0.3788,2639.8,2639.4,0.37885]
[1727076318333,0.3788,2639.8,2639.5,0.37884]
[1727076318635,0.37879,2639.9,2639.6,0.77872]
[1727076318840,0.37879,2639.9,2639.7,0.393]
[1727076319029,0.37879,2639.9,2639.8,0.3982]
[1727076319334,14.4696,2640.5,2639.8,0.3982]
[1727076319525,0.37872,2640.3,2639.9,0.37878]
[1727076319732,0.37872,2640.3,2639.8,0.77699]
[1727076320130,3.5806,2640.5,2639.8,0.3982]
[1727076320131,0.37874,2640.2,2639.8,0.3982]
[1727076321732,3.5806,2640.5,2639.8,0.77699]
[1727076321733,0.37873,2640.3,2639.8,0.77699]
[1727076321934,3.5806,2640.5,2639.9,0.37877]
[1727076321935,0.37871,2640.4,2639.9,0.37877]
[1727076322326,3.2078,2640.5,2639.9,2.07]
[1727076322533,3.2078,2640.5,2639.8,0.3982]
[1727076322534,3.2078,2640.8,2640.4,2.44871]
[1727076322735,3.2078,2640.8,2640.6,2.07]
[1727076323137,3.2078,2640.8,2640.7,40.8]
[1727076323739,3.2078,2641.1,2640.7,40.8]
[1727076324332,3.58641,2641.1,2640.7,40.8]
[1727076324532,3.2078,2641.1,2640.7,41.17866]
[1727076324841,3.2078,2641.1,2640.7,40.8]
[1727076325143,3.2078,2641.1,2640.7,41.17865]
[1727076325341,3.2078,2641.1,2640.7,40.8]
[1727076325533,4.70329923,2641.6,2640.8,2.07]
[1727076325737,0.37856,2641.4,2641.0,2.07]
[1727076325950,0.37856,2641.4,2641.1,0.3901]
[1727076326135,0.37855,2641.5,2641.1,0.3901]
[1727076326742,0.37851,2641.8,2641.2,2.07]
[1727076327039,4.32259923,2641.9,2641.3,0.37857]
[1727076327240,0.75658,2642.0,2641.3,0.37857]
[1727076327639,0.37849,2641.9,2641.4,0.3671]
[1727076329842,0.37849,2641.9,2641.2,2.82189]
[1727076330144,2.44853,2641.7,2641.2,0.3733]
[1727076330737,3.2078,2641.8,2641.2,0.75189]
[1727076331145,3.2078,2641.8,2641.3,0.37857]
[1727076331443,3.2078,2641.8,2641.3,0.388]
[1727076331444,3.58631,2641.8,2641.3,0.388]
[1727076332150,2.44853,2641.7,2641.2,0.3733]
[1727076332951,0.37854,2641.6,2641.2,0.3733]
[1727076333141,0.37855,2641.5,2641.2,0.3733]
[1727076333741,2.07,2641.7,2641.2,0.3733]
[1727076333742,0.37854,2641.6,2641.2,0.3733]
[1727076334145,2.44853,2641.7,2641.2,0.3733]
[1727076334753,2.44853,2641.7,2641.2,0.75189]
[1727076335050,3.2078,2641.8,2641.2,0.75189]
[1727076335051,3.2078,2641.8,2641.3,0.37857]
[1727076335638,3.58631,2641.8,2641.3,0.37857]
[1727076337060,0.37851,2641.8,2641.3,0.37857]
[1727076337247,0.374,2642.1,2641.6,5.2778]
[1727076337549,6.22379,2642.6,2641.6,5.2778]
[1727076337550,0.3812,2642.5,2641.9,3.2078]
[1727076337753,0.3812,2642.5,2641.9,5.2778]
[1727076337954,0.37843,2642.4,2642.0,40.8]
[1727076338845,0.3812,2642.5,2642.0,40.8]
[1727076339950,0.37843,2642.4,2642.0,40.8]
[1727076340653,0.37841,2642.5,2642.0,41.17848]
[1727076341046,0.37842,2642.4,2642.0,41.17848]
[1727076341354,10.16780923,2642.9,2642.0,42.87]
[1727076341541,0.37842,2642.5,2642.0,43.24847]
[1727076342149,0.37842,2642.4,2642.0,43.24847]
[1727076342544,10.16780923,2642.9,2642.0,46.6548]
[1727076342746,0.37844,2642.3,2642.0,42.87]
[1727076342946,0.37844,2642.3,2642.0,40.8]
[1727076343147,0.37844,2642.3,2642.0,44.5848]
[1727076343353,0.37844,2642.3,2642.0,3.7848]
[1727076343547,0.37844,2642.3,2642.1,3.7848]
[1727076343745,0.37846,2642.2,2641.9,3.2078]
[1727076344247,0.37844,2642.3,2641.9,3.2078]
[1727076344647,3.94409923,2642.9,2642.2,2.07]
[1727076344954,3.94409923,2642.9,2642.3,1.1537]
[1727076345353,0.37839,2642.7,2642.3,1.1537]
[1727076345751,3.94409923,2643.2,2642.6,2.07]
[1727076345951,0.37833,2643.1,2642.6,2.07]
[1727076346157,0.37835,2643.0,2642.6,2.07]
[1727076346449,0.37835,2643.0,2642.6,2.44838]
[1727076346855,0.37833,2643.1,2642.6,2.44838]
[1727076347050,2.4649,2643.5,2642.6,2.44838]
[1727076347252,2.4649,2643.5,2642.6,2.07]
[1727076347253,0.37835,2642.9,2642.6,2.07]
[1727076347450,0.37837,2642.8,2642.5,3.2078]
[1727076348150,0.3718,2643.1,2642.5,3.2078]
[1727076348655,0.37837,2642.8,2642.5,3.2078]
[1727076348953,0.3718,2643.1,2642.5,3.2078]
[1727076348954,0.37839,2642.7,2642.5,3.2078]
[1727076349343,0.3913,2643.0,2642.5,3.2078]
[1727076349546,0.37838,2642.7,2642.5,3.2078]
[1727076350557,0.3913,2643.0,2642.5,3.2078]
[1727076350558,0.37837,2642.8,2642.5,3.2078]
[1727076350850,0.3913,2643.0,2642.5,3.2078]
[1727076351055,3.2078,2642.9,2642.5,3.2078]
[1727076351457,0.37839,2642.7,2642.5,3.2078]
[1727076352251,0.37839,2642.6,2642.5,3.2078]
[1727076353860,0.37842,2642.4,2642.3,1.1537]
[1727076354256,0.37838,2642.7,2642.3,8.1463]
[1727076354463,0.37838,2642.7,2642.3,1.1537]
[1727076354760,0.37833,2643.1,2642.6,5.2778]
[1727076355259,0.37834,2643.0,2642.8,2.07]
[1727076355457,0.37834,2643.0,2642.9,0.3846]
[1727076356055,4.34269923,2643.3,2642.9,4.1686]
[1727076356056,0.37831,2643.2,2642.9,4.1686]
[1727076356259,0.37832,2643.1,2642.9,0.7704]
[1727076356449,0.37833,2643.1,2642.9,0.7704]
[1727076356655,3.6039,2643.8,2643.0,9.061]
[1727076356859,0.37827,2643.5,2643.0,9.62300726]
[1727076357363,0.37829,2643.4,2643.0,9.24467726]
[1727076357961,0.37829,2643.4,2643.1,0.3698]
[1727076358465,0.37829,2643.3,2643.1,0.3698]
[1727076359164,0.37831,2643.2,2643.1,4.153]
[1727076359362,0.37831,2643.2,2643.1,0.3698]
[1727076359570,0.3783,2643.3,2643.1,4.153]
[1727076359865,0.37831,2643.2,2643.1,0.3698]
[1727076360258,0.37831,2643.2,2643.1,4.153]
[1727076360763,0.3783,2643.3,2643.1,4.153]
[1727076360957,0.3783,2643.3,2643.1,0.3698]
[1727076361164,0.37829,2643.4,2643.1,4.153]
[1727076361373,3.2078,2643.8,2643.3,2.07]
[1727076361555,3.2078,2643.8,2643.3,5.2778]
[1727076361866,3.2078,2643.8,2643.3,2.07]
[1727076361867,0.37825,2643.6,2643.3,2.07]
[1727076363363,3.2078,2643.8,2643.3,2.07]
[1727076363665,0.37824,2643.7,2643.3,5.2778]
[1727076363857,3.2078,2643.8,2643.3,5.2778]
[1727076364063,0.37826,2643.5,2643.3,2.07]
[1727076364372,0.37826,2643.6,2643.3,2.07]
[1727076364570,0.37827,2643.5,2643.3,2.07]
[1727076364765,0.37827,2643.5,2643.3,5.8532]
[1727076365066,0.37827,2643.5,2643.3,2.07]
[1727076365268,0.37828,2643.4,2643.3,5.8532]
[1727076365562,0.37828,2643.4,2643.1,0.3698]
[1727076365563,0.37831,2643.2,2643.1,0.3698]
[1727076365767,3.2078,2643.8,2643.1,0.3698]
[1727076365964,0.37827,2643.5,2643.1,2.4398]
[1727076366868,3.2078,2643.8,2643.1,2.4398]
[1727076367067,0.37829,2643.4,2643.1,2.4398]
[1727076367260,0.9456,2643.7,2643.1,2.4398]
[1727076367461,0.37831,2643.2,2643.1,2.4398]
[1727076367659,0.3783,2643.3,2643.1,2.4398]
[1727076368170,0.3783,2643.3,2643.1,6.223]
[1727076369569,0.37829,2643.4,2643.1,6.223]
[1727076369774,0.37829,2643.4,2643.1,2.4398]
[1727076370362,0.37825,2643.6,2643.3,2.07]
[1727076370565,0.37825,2643.6,2643.3,5.2778]
[1727076371170,0.37824,2643.7,2643.3,5.2778]
[1727076371566,0.37823,2643.8,2643.3,5.65609]